bitfinex/quotes_ETHUSD_20260131
["timestamp","ask_amount","ask_price","bid_price","bid_amount"]
[1769821693985,0.92192721,2711.8,2710.7,4.92910455]
[1769821694186,0.92172694,2712.3,2711.0,4.92910455]
[1769821694388,0.92168338,2712.5,2711.2,0.2335703]
[1769821694547,0.92168338,2712.5,2711.3,4.92910455]
[1769821695567,1e-08,2712.5,2711.5,4.92910455]
[1769821695846,1e-08,2712.5,2711.7,4.92910455]
[1769821696250,1e-08,2712.5,2711.4,0.92203289]
[1769821697655,5.00632536,2712.3,2711.3,5.85116542]
[1769821697977,5.00632536,2712.3,2711.3,4.92910455]
[1769821698159,5.00632536,2712.3,2710.9,5.85128903]
[1769821698365,5.00632536,2712.1,2710.9,7.44032413]
[1769821699088,5.00632536,2712.1,2711.0,5.85127151]
[1769821699956,0.9218289,2712.0,2711.1,5.85123807]
[1769821702592,3.68731563,2712.1,2711.1,5.85123807]
[1769821705474,8.69364099,2712.1,2711.1,5.85123807]
[1769821705889,5.00632536,2712.0,2710.9,5.85128454]
[1769821706197,6.07245864,2712.0,2710.7,5.85134773]
[1769821706504,5.00632536,2711.7,2710.6,0.92229854]
[1769821706659,5.00632536,2711.7,2710.6,5.85140309]
[1769821707171,5.00632536,2711.7,2710.7,0.92226778]
[1769821707872,5.92829025,2711.6,2710.7,5.85137233]
[1769821709104,5.92829025,2711.6,2710.7,0.92226778]
[1769821709272,5.00632536,2711.2,2710.3,4.92910455]
[1769821709482,5.00632536,2711.2,2710.1,8.61897235]
[1769821709806,5.00632536,2711.2,2710.2,5.8515247]
[1769821710207,5.92835825,2711.4,2710.2,5.8515247]
[1769821710406,0.92203289,2711.4,2710.2,5.8515247]
[1769821710611,5.92835825,2711.4,2710.4,4.92910455]
[1769821710908,5.92835825,2711.4,2710.2,5.8515247]
[1769821712314,0.92203289,2711.4,2710.2,5.8515247]
[1769821714511,3.68811291,2711.5,2710.2,5.8515247]
[1769821714699,3.68811291,2711.5,2710.4,4.92910455]
[1769821715122,8.69443827,2711.5,2710.4,4.92910455]
[1769821716732,5.33958471,2711.8,2710.6,4.27171369]
[1769821719038,5.33958471,2711.8,2710.8,4.3544157]
[1769821719329,6.76325979,2711.8,2710.9,4.88208437]
[1769821719541,6.76325979,2711.8,2710.9,4.3544157]
[1769821720041,4.21882697,2711.7,2710.9,4.3544157]
[1769821724716,0.92196489,2711.6,2710.9,5.27660017]
[1769821724912,5.14079186,2711.6,2710.9,5.27660017]
[1769821725119,4.21882697,2711.6,2710.9,6.17317161]
[1769821725356,0.9219545,2711.7,2711.0,4.3544157]
[1769821726141,0.92288697,2711.9,2711.0,4.3544157]
[1769821727473,0.001,2711.9,2711.2,4.3544157]
[1769821728343,0.001,2711.9,2711.2,5.25092587]
[1769821729845,0.001,2711.5,2711.2,6.17299844]
[1769821732054,5.14062188,2712.1,2711.3,4.3544157]
[1769821732675,5.14062188,2712.1,2711.2,6.17302269]
[1769821732872,5.14062188,2712.1,2711.2,5.25092587]
[1769821733075,4.21882697,2711.9,2711.1,0.92211215]
[1769821734068,0.92189689,2711.8,2711.1,0.92211215]
[1769821734766,0.92189689,2711.8,2711.1,5.27652785]
[1769821735188,0.92189689,2711.8,2710.9,4.58532867]
[1769821735189,4.21882697,2711.7,2710.9,4.58532867]
[1769821735369,4.21882697,2711.3,2710.3,4.3544157]
[1769821735569,4.21882697,2711.3,2710.4,5.27676901]
[1769821736086,0.92210091,2711.2,2710.4,5.27676901]
[1769821736476,4.21882697,2712.0,2710.7,4.3544157]
[1769821736680,0.9218629,2711.9,2710.7,4.3544157]
[1769821737182,5.14068987,2711.9,2710.7,4.3544157]
[1769821740398,5.14068987,2711.9,2710.7,5.27666152]
[1769821740600,4.21882697,2711.7,2710.7,5.27666152]
[1769821741798,4.21882697,2711.7,2710.9,0.0011]
[1769821742293,0.92196489,2711.6,2710.9,0.0011]
[1769821742494,5.14079186,2711.6,2710.9,0.0011]
[1769821744867,5.14079186,2711.6,2710.9,4.3555157]
[1769821745068,5.14079186,2711.6,2710.9,0.0011]
[1769821745378,6.16656486,2711.6,2710.9,0.0011]
[1769821745777,6.16656486,2711.6,2710.9,4.3555157]
[1769821746078,1.94773789,2711.6,2710.9,4.3555157]
[1769821746278,6.16656486,2711.6,2710.9,0.0011]
[1769821746475,0.92196489,2711.6,2710.9,3.86401597]
[1769821746678,0.92295508,2711.7,2710.9,3.86401597]
[1769821746878,0.92294553,2711.7,2710.9,3.86401597]
[1769821748414,0.001,2711.7,2711.1,4.56291597]
[1769821750505,0.001,2711.7,2711.1,5.11153342]
[1769821755122,0.001,2711.7,2711.1,5.11263342]
[1769821758422,0.001,2711.7,2711.2,3.86291597]
[1769821761201,0.001,2711.7,2711.2,4.7850131]
[1769821761932,0.001,2711.7,2711.2,3.86291597]
[1769821762419,0.001,2711.7,2711.2,0.97233383]
[1769821762728,0.001,2711.7,2711.1,0.0011]
[1769821763926,0.001,2711.7,2711.1,3.86401597]
[1769821766047,0.001,2711.7,2711.1,4.78613449]
[1769821767758,0.001,2711.5,2711.1,4.78613449]
[1769821768059,0.001,2711.5,2711.1,5.63372902]
[1769821769728,0.9218482,2712.0,2711.2,3.86291597]
[1769821770534,0.9218482,2712.0,2711.3,0.9220669]
[1769821771262,0.9218482,2712.0,2711.3,4.78498287]
[1769821771634,0.92181859,2712.1,2711.3,4.78498287]
[1769821771935,0.92181859,2712.1,2711.4,4.71025224]
[1769821774552,3.68707847,2712.2,2711.4,5.63226796]
[1769821774955,3.68707847,2712.2,2711.5,3.86291597]
[1769821779557,7.19379546,2712.2,2711.3,3.77864871]
[1769821780424,0.001,2712.0,2711.3,3.77864871]
[1769821780624,0.001,2712.0,2711.4,0.47007255]
[1769821783660,3.50771699,2712.0,2711.1,0.0011]
[1769821783845,3.50771699,2712.0,2710.9,0.0011]
[1769821783846,3.50671699,2711.4,2710.5,3.77864871]
[1769821784043,5.44833272,2711.5,2710.5,3.77864871]
[1769821784044,4.40222196,2711.3,2710.5,3.77864871]
[1769821785075,3.50671699,2711.2,2710.3,3.77864871]
[1769821785863,3.50671699,2711.0,2710.3,4.70104032]
[1769821786065,0.92213492,2711.1,2710.3,4.70104032]
[1769821786236,1.82342458,2711.1,2710.3,4.70104032]
[1769821787950,1.82342458,2711.1,2710.3,3.77864871]
[1769821788148,5.33014157,2711.1,2710.3,3.77864871]
[1769821791943,5.33014157,2711.1,2710.3,4.701055]
[1769821792661,5.33014157,2711.1,2710.8,0.0011]
[1769821797877,1.82342458,2711.1,2710.8,0.0011]
[1769821799685,1.82342458,2711.1,2710.4,4.70101828]
[1769821799975,0.55119643,2711.0,2710.4,3.77864871]
[1769821801128,3.50671699,2710.8,2709.9,3.77864871]
[1769821801296,3.50671699,2710.8,2709.7,3.77974871]
[1769821801685,3.50671699,2710.6,2709.7,4.70235136]
[1769821801977,3.50671699,2710.6,2709.7,5.54186372]
[1769821802722,8.50671699,2710.6,2709.7,5.54186372]
[1769821803223,8.50671699,2710.6,2709.7,0.0011]
[1769821803224,3.50671699,2710.5,2709.7,0.0011]
[1769821803590,0.92244114,2710.2,2709.7,0.0011]
[1769821804322,0.92244114,2710.2,2710.1,0.0011]
[1769821805221,0.92244114,2710.2,2709.7,0.0011]
[1769821805222,4.42915813,2710.2,2709.7,0.0011]
[1769821805384,4.42915813,2710.2,2709.6,0.0011]
[1769821805385,3.50671699,2710.0,2709.6,0.0011]
[1769821805584,1.31188301,2710.1,2709.6,0.0011]
[1769821805785,1.69444114,2710.2,2709.6,0.0011]
[1769821806587,5.13562509,2710.2,2709.6,0.0011]
[1769821806784,4.36369317,2710.0,2709.6,0.0011]
[1769821806989,3.44118395,2709.9,2709.6,0.0011]
[1769821807458,0.92250922,2710.0,2709.6,0.0011]
[1769821807584,0.92250922,2710.0,2709.5,0.0011]
[1769821807585,4.24655696,2709.9,2709.3,0.0011]
[1769821807786,0.80537301,2709.9,2709.3,3.56431764]
[1769821807991,5.92247627,2710.1,2709.3,3.56431764]
[1769821808644,0.92247627,2710.1,2709.3,3.56431764]
[1769821809431,0.92247627,2710.1,2709.4,3.56321764]
[1769821809608,0.92247627,2710.1,2709.3,0.0011]
[1769821809609,3.44118395,2710.0,2709.3,0.0011]
[1769821810642,8.44118395,2709.8,2709.3,0.0011]
[1769821815746,0.92261135,2709.7,2709.3,0.0011]
[1769821816330,0.92261135,2709.7,2709.5,0.0011]
[1769821816530,1.3054205,2709.6,2709.5,0.0011]
[1769821819070,2.2280659,2709.6,2709.5,0.0011]
[1769821819246,2.2280659,2709.6,2709.3,0.0011]
[1769821819951,5.9226016,2709.8,2709.3,3.56431764]
[1769821820550,0.9226016,2709.8,2709.3,3.56431764]
[1769821821469,3.6910889,2710.0,2709.3,3.56431764]
[1769821821664,3.6910889,2710.0,2709.5,0.7]
[1769821821838,1.16919497,2709.9,2709.5,0.7]
[1769821823581,0.92257731,2709.8,2709.5,0.7]
[1769821826951,0.92257731,2709.8,2709.3,0.0011]
[1769821827145,4.36376126,2709.8,2709.3,0.0011]
[1769821827453,3.44118395,2709.7,2709.3,0.0011]
[1769821827663,0.92267946,2709.5,2709.3,0.0011]
[1769821829178,0.92367946,2709.5,2709.3,0.0011]
[1769821830478,0.001,2709.5,2709.3,0.0011]
[1769821840798,6.69559485,2709.8,2709.3,3.33777477]
[1769821840998,5.773,2709.8,2709.3,3.33777477]
[1769821841370,5.0,2709.8,2709.3,3.33777477]
[1769821841570,2.09176429,2709.9,2709.3,3.33777477]
[1769821842102,2.09176429,2709.9,2709.5,0.7]
[1769821842808,2.09176429,2709.9,2709.5,4.03667477]
[1769821843103,0.92352924,2710.0,2709.5,4.03667477]
[1769821845011,0.001,2710.0,2709.5,4.03667477]
[1769821847075,0.001,2710.0,2709.6,3.33667477]
[1769821847774,0.773,2710.4,2709.6,3.33667477]
[1769821847775,1.69538591,2710.4,2709.6,3.33667477]
[1769821847978,1.69538591,2710.4,2709.8,3.33667477]
[1769821849277,4.8706563,2710.4,2709.6,3.33667477]
[1769821851604,9.8706563,2710.4,2709.6,3.33667477]
[1769821852717,0.001,2710.2,2709.6,3.33667477]
[1769821858422,0.001,2710.2,2709.6,4.68536368]
[1769821859118,0.001,2710.2,2709.7,3.33667477]
[1769821864434,0.001,2710.2,2709.8,0.0011]
[1769821873126,0.001,2710.2,2709.8,3.13684534]
[1769821873636,0.001,2710.2,2709.9,3.13574534]
[1769821875936,0.001,2710.2,2710.0,0.0011]
[1769821883108,3.68898256,2710.8,2710.0,3.13684534]
[1769821883340,0.92223697,2710.8,2710.0,3.13684534]
[1769821883654,0.92322178,2710.9,2710.0,3.13684534]
[1769821884032,0.92322178,2710.9,2710.2,0.7]
[1769821884240,0.92322178,2710.9,2710.2,3.83574534]
[1769821884440,0.001,2710.9,2710.2,5.14184515]
[1769821884649,0.001,2710.9,2710.3,3.13574534]
[1769821887635,0.001,2710.9,2710.4,3.13574534]
[1769821888532,0.001,2710.7,2710.4,3.13574534]
[1769821890092,0.001,2710.7,2710.2,3.51942987]
[1769821890392,0.001,2710.7,2710.3,0.35194299]
[1769821899770,0.001,2710.5,2710.3,0.35194299]
[1769821905100,0.001,2710.5,2710.0,3.69109795]
[1769821905269,0.001,2710.5,2710.1,2.97644186]
[1769821905470,0.001,2710.5,2710.2,0.92243406]
[1769821905700,0.001,2710.5,2710.3,0.7]
[1769821910202,0.001,2710.5,2710.3,1.62240448]
[1769821910410,0.001,2710.9,2710.4,2.97644186]
[1769821910714,5.0,2711.5,2710.4,2.97644186]
[1769821910896,5.0,2711.5,2710.4,8.42979729]
[1769821911084,5.0,2711.5,2710.6,2.97644186]
[1769821911606,0.92193089,2711.7,2710.6,2.97644186]
[1769821912379,3.68758917,2711.8,2710.8,2.97644186]
[1769821912600,0.92184939,2712.0,2710.8,2.97644186]
[1769821912785,0.92184939,2712.0,2711.0,2.97644186]
[1769821914520,0.92184939,2712.0,2711.2,2.97644186]
[1769821916539,0.92184939,2712.0,2711.2,3.89852043]
[1769821917302,6.65512677,2712.1,2711.2,3.89852043]
[1769821917303,3.8896613,2712.1,2711.3,2.97644186]
[1769821917632,2.96784715,2712.3,2711.3,2.97644186]
[1769821917831,2.96784715,2712.3,2711.2,0.92207857]
[1769821917832,3.88953901,2712.5,2711.5,2.97644186]
[1769821918032,1e-08,2712.5,2711.5,2.97644186]
[1769821918528,1e-08,2712.5,2711.7,2.97644186]
[1769821919406,1e-08,2712.5,2711.4,2.97644186]
[1769821919613,2.96784715,2712.4,2711.4,0.92202252]
[1769821919840,2.96784715,2712.4,2711.6,2.97644186]
[1769821920534,3.88957409,2712.3,2711.5,0.92199115]
[1769821921519,2.96784715,2712.2,2711.7,0.7]
[1769821921835,0.92172694,2712.3,2711.7,0.7]
[1769821922042,0.46085245,2712.2,2711.7,0.7]
[1769821923321,1.38262792,2712.2,2711.7,0.7]
[1769821924144,0.001,2712.1,2711.7,0.7]
[1769821927512,0.001,2712.1,2711.5,2.97644186]
[1769821928160,2.93054963,2712.1,2711.2,3.00858455]
[1769821928315,3.51297281,2712.1,2711.2,3.77051047]
[1769821928638,3.51297281,2712.1,2711.3,3.00858455]
[1769821930743,4.43479162,2712.1,2711.4,0.92203289]
[1769821931345,4.43479162,2712.1,2711.4,3.93061744]
[1769821931560,4.43479162,2712.1,2711.6,0.7]
[1769821932762,2.92954963,2712.0,2711.6,0.7]
[1769821932921,1.50524199,2712.1,2711.6,0.7]
[1769821933660,2.92954963,2712.0,2711.4,0.92203289]
[1769821936252,0.001,2711.9,2711.3,3.688262]
[1769821936450,0.001,2711.9,2711.6,0.7]
[1769821941924,2.93054963,2711.9,2711.0,0.92216519]
[1769821942163,0.29305496,2711.8,2711.2,0.92208518]
[1769821942365,0.001,2711.9,2711.2,3.93066973]
[1769821944425,0.001,2711.9,2711.3,3.00858455]
[1769821944976,0.001,2711.9,2711.3,0.92204589]
[1769821945140,0.001,2711.9,2711.4,3.00858455]
[1769821947964,0.001,2711.9,2711.4,3.93061634]
[1769821948461,0.001,2711.9,2711.6,0.0011]
[1769821948657,0.001,2711.7,2711.6,0.0011]
[1769821949877,3.68705042,2712.2,2711.6,0.0011]
[1769821949878,2.92954963,2712.3,2711.6,0.0011]
[1769821950175,2.92954963,2712.3,2711.6,3.00968455]
[1769821950176,0.88513106,2712.2,2711.6,3.00968455]
[1769821950338,0.88513106,2712.2,2711.6,0.0011]
[1769821951380,0.88513106,2712.2,2711.6,3.00968455]
[1769821951582,0.92171708,2712.4,2711.6,3.00968455]
[1769821951876,2.92954963,2712.4,2711.6,0.0011]
[1769821952790,2.92954963,2712.4,2711.6,0.92306356]
[1769821952954,0.66162407,2712.3,2711.6,0.92306356]
[1769821953449,3.5911737,2712.3,2711.6,0.92306356]
[1769821953679,3.5911737,2712.3,2711.6,0.0011]
[1769821953882,2.92954963,2712.1,2711.6,0.0011]
[1769821957286,3.7530881,2712.0,2711.6,0.0011]
[1769821957790,1.94883502,2712.1,2711.6,0.0011]
[1769821957955,1.02703679,2712.1,2711.6,0.0011]
[1769821958159,5.92178616,2712.2,2711.6,0.0011]
[1769821958554,0.92178616,2712.2,2711.6,0.0011]
[1769821961398,0.001,2712.0,2711.6,0.0011]
[1769821966100,0.001,2712.0,2711.8,0.7]
[1769821967398,0.001,2712.0,2711.6,0.0011]
[1769821968170,2.8843349,2711.8,2710.9,6.35]
[1769821968365,2.8843349,2711.8,2710.5,1.00632018]
[1769821968366,2.8843349,2711.8,2710.7,2.84323959]
[1769821968565,0.9218629,2711.9,2711.1,2.84323959]
[1769821968775,0.9218629,2711.9,2710.5,3.69037546]
[1769821968776,2.8843349,2711.8,2710.9,3.76542295]
[1769821968972,2.8843349,2711.8,2710.7,0.92226632]
[1769821969297,2.8843349,2711.6,2710.6,0.92230348]
[1769821969614,2.8843349,2711.6,2710.8,2.84323959]
[1769821970096,2.8843349,2711.6,2710.7,0.92225312]
[1769821970297,2.8843349,2711.4,2710.5,0.0011]
[1769821970599,3.26496828,2711.3,2710.5,0.0011]
[1769821970797,2.8843349,2711.3,2710.5,0.0011]
[1769821971094,2.8843349,2711.3,2710.7,0.5]
[1769821971690,2.8843349,2711.2,2710.7,0.5]
[1769821972682,2.8843349,2711.0,2710.7,0.5]
[1769821972870,0.80032891,2710.9,2710.7,0.5]
[1769821974107,0.80032891,2710.9,2710.5,0.0011]
[1769821974405,0.80032891,2710.9,2710.6,0.0011]
[1769821974899,1.72255472,2710.9,2710.6,0.0011]
[1769821979397,5.0,2711.1,2710.6,2.84433959]
[1769821979603,0.92211798,2711.2,2710.6,2.84433959]
[1769821980123,7.8843349,2711.6,2710.6,2.84433959]
[1769821980284,0.92199889,2711.5,2710.6,2.84433959]
[1769821981279,0.92199889,2711.5,2710.8,2.84323959]
[1769821981479,1.9601856,2711.5,2710.8,2.84323959]
[1769821983590,1.9601856,2711.5,2710.8,3.76547644]
[1769821986486,1.9601856,2711.5,2710.8,2.84323959]
[1769821986784,1.9601856,2711.5,2710.9,0.0011]
[1769821987213,0.001,2711.4,2710.9,0.0011]
[1769821987415,0.001,2711.4,2710.9,2.74136565]
[1769821987614,0.001,2711.4,2710.9,3.47662531]
[1769821989532,2.86825226,2711.4,2710.9,0.0011]
[1769821989714,0.9220669,2711.3,2710.9,0.0011]
[1769821989913,0.92305891,2711.4,2710.9,0.0011]
[1769821990116,0.92303371,2711.4,2710.9,2.74136565]
[1769821990318,0.92303371,2711.4,2710.9,3.01550222]
[1769821992525,0.001,2711.4,2710.9,3.01550222]
[1769821997029,0.001,2711.4,2710.9,0.0011]
[1769821999228,0.001,2711.3,2710.9,0.0011]
[1769822009445,0.001,2711.3,2710.6,3.66366872]
[1769822009446,2.86725226,2711.2,2710.6,0.0011]
[1769822010559,2.86725226,2711.0,2710.6,0.0011]
[1769822010746,3.65397749,2711.0,2710.6,0.0011]
[1769822011662,0.92220295,2710.9,2710.6,0.0011]
[1769822018732,0.001,2711.1,2710.6,2.69831132]
[1769822018935,0.001,2711.3,2710.8,1.80639382]
[1769822020064,0.001,2711.3,2710.9,0.27286524]
[1769822022071,0.001,2711.3,2710.9,1.19506083]
[1769822022430,0.001,2711.3,2710.9,0.27286524]
[1769822023335,0.001,2711.0,2710.9,0.27286524]
[1769822026570,0.001,2711.0,2710.9,1.19506819]
[1769822026981,3.510603,2711.6,2710.9,1.19506819]
[1769822028057,3.510603,2711.6,2710.9,0.27286524]
[1769822032278,3.510603,2711.6,2710.9,1.19506767]
[1769822034589,0.92198789,2711.6,2711.0,0.30025615]
[1769822035588,0.92198789,2711.6,2711.1,0.0011]
[1769822035789,0.001,2711.4,2711.1,0.0011]
[1769822038104,2.58861511,2711.9,2711.1,0.0011]
[1769822038303,0.92191017,2711.8,2711.1,2.42576098]
[1769822040202,2.58861511,2712.0,2711.2,0.92210091]
[1769822040509,2.58861511,2712.2,2711.3,2.09247311]
[1769822042416,2.58861511,2712.2,2711.1,0.35765899]
[1769822042417,2.58861511,2712.0,2711.1,0.35765899]
[1769822042605,2.58861511,2712.0,2711.1,0.0011]
[1769822046099,2.58861511,2711.8,2711.1,0.0011]
[1769822047806,2.58961511,2711.8,2711.1,0.0011]
[1769822049407,2.71913359,2711.6,2711.1,0.0011]
[1769822049714,2.71913359,2711.5,2711.1,0.0011]
[1769822051517,3.64113525,2711.5,2711.1,0.0011]
[1769822053756,3.68776766,2711.7,2711.1,0.0011]
[1769822053757,0.92198787,2711.6,2711.1,0.0011]
[1769822054543,3.64112146,2711.6,2711.1,0.0011]
[1769822059251,3.64112146,2711.6,2711.3,0.0011]
[1769822059430,4.37411037,2711.6,2711.3,0.0011]
[1769822061965,2.71913359,2711.5,2711.1,0.0011]
[1769822064338,0.92203289,2711.4,2711.1,0.0011]
[1769822067768,3.64115726,2711.5,2711.1,0.0011]
[1769822071279,3.63696478,2711.5,2711.1,0.0011]
[1769822071577,3.63696478,2711.5,2711.3,0.0011]
[1769822071876,0.001,2711.4,2711.3,0.0011]
[1769822081800,0.92196489,2711.6,2711.3,0.0011]
[1769822084693,0.92196489,2711.6,2711.5,0.0011]
[1769822088293,0.92196489,2711.6,2711.3,0.0011]
[1769822090583,2.88278994,2711.8,2711.3,0.0011]
[1769822090881,0.38046528,2711.7,2711.3,0.0011]
[1769822092013,3.26325522,2711.7,2711.3,0.0011]
[1769822092216,2.88278994,2711.7,2711.3,0.0011]
[1769822092810,0.92196489,2711.6,2711.3,0.0011]
[1769822096723,0.92196489,2711.6,2711.5,0.0011]
[1769822102496,0.92196489,2711.6,2711.1,0.0011]
[1769822102497,3.80475483,2711.6,2711.1,0.0011]
[1769822102714,2.88278994,2711.5,2711.1,0.0011]
[1769822103315,0.92196489,2711.6,2711.1,0.0011]
[1769822108430,0.92196489,2711.6,2711.3,0.0011]
[1769822108735,1.74841885,2711.6,2711.3,0.0011]
[1769822113333,0.9219256,2711.8,2711.3,0.0011]
[1769822113535,3.93155889,2711.8,2711.3,0.0011]
[1769822119853,0.001,2711.6,2711.3,0.0011]
[1769822120753,0.9218629,2711.9,2711.3,0.0011]
[1769822121455,3.93149619,2711.9,2711.3,0.0011]
[1769822129348,0.9218629,2711.9,2711.3,0.0011]
[1769822129544,0.9218629,2711.9,2711.3,0.26352104]
[1769822131680,3.00963329,2712.2,2711.5,2.62327422]
[1769822131840,0.92181696,2712.1,2711.5,2.62327422]
[1769822132260,0.92181696,2712.1,2711.5,0.0011]
[1769822132464,0.92181696,2712.1,2711.5,0.38188621]
[1769822134079,0.92181696,2712.1,2711.5,1.30388016]
[1769822134241,3.00963329,2712.1,2711.5,1.30388016]
[1769822134440,0.92178292,2712.2,2711.5,1.30388016]
[1769822134855,0.92178292,2712.2,2711.5,3.92518471]
[1769822135050,0.92178292,2712.2,2711.6,0.39251847]
[1769822138069,3.87997477,2712.5,2711.6,3.01403059]
[1769822138255,3.10797477,2712.5,2711.6,2.62151212]
[1769822138573,1e-08,2712.5,2711.7,2.62151212]
[1769822139470,1e-08,2712.5,2711.5,9.51757294]
[1769822139471,1e-08,2712.5,2711.5,1.30386156]
[1769822139673,1e-08,2712.5,2711.5,0.92307535]
[1769822139875,1e-08,2712.5,2711.5,0.0011]
[1769822140077,3.10797476,2712.4,2711.5,0.0011]
[1769822141381,3.10797476,2712.4,2711.5,2.62279022]
[1769822141779,3.10797476,2712.4,2711.5,0.0011]
[1769822141980,3.10797476,2712.2,2711.5,0.0011]
[1769822142181,4.02976248,2712.2,2711.5,0.0011]
[1769822143979,4.02976248,2712.2,2711.7,0.0011]
[1769822144364,0.001,2712.0,2711.7,0.0011]
[1769822147977,0.001,2712.0,2711.5,0.0011]
[1769822147978,3.10897476,2712.0,2711.5,0.0011]
[1769822148194,3.51205101,2712.0,2711.5,0.0011]
[1769822148878,0.9218629,2711.9,2711.5,0.0011]
[1769822149082,3.10797476,2711.8,2711.5,0.0011]
[1769822149401,0.9218629,2711.9,2711.5,0.0011]
[1769822149584,1.73398389,2711.9,2711.5,0.0011]
[1769822150481,4.84195865,2711.9,2711.5,0.0011]
[1769822157398,4.84195865,2711.9,2711.7,0.0011]
[1769822157715,0.001,2711.7,2711.5,0.0011]
[1769822163019,3.10897476,2711.7,2711.5,0.0011]
[1769822163319,0.31089748,2711.6,2711.5,0.0011]
[1769822163627,3.41887224,2711.6,2711.3,0.0011]
[1769822164428,3.10797476,2711.5,2711.3,0.0011]
[1769822164603,3.10797476,2711.5,2711.0,0.0011]
[1769822167135,3.05214085,2711.3,2711.0,0.0011]
[1769822167339,0.92201753,2711.5,2711.0,0.0011]
[1769822167516,1.71941289,2711.5,2711.0,0.0011]
[1769822168236,4.77155374,2711.5,2711.0,0.0011]
[1769822169540,3.05214085,2711.4,2711.0,0.0011]
[1769822170431,3.05314085,2711.3,2711.0,0.0011]
[1769822172238,3.97521425,2711.3,2711.0,0.0011]
[1769822172441,4.82128053,2711.3,2711.0,0.0011]
[1769822174020,3.89920713,2711.3,2711.0,0.0011]
[1769822175629,4.82127445,2711.3,2711.0,0.0011]
[1769822175840,3.89920713,2711.3,2711.0,0.0011]
[1769822176542,3.05214085,2711.2,2710.6,0.0011]
[1769822176753,3.53426691,2711.2,2710.6,0.0011]
[1769822177540,3.97427577,2711.1,2710.6,0.0011]
[1769822178350,3.05214085,2711.0,2710.6,0.0011]
[1769822178659,3.86662611,2711.0,2710.6,0.0011]
[1769822180367,1.73666839,2711.0,2710.6,0.0011]
[1769822181764,1.73666839,2711.0,2710.8,0.0011]
[1769822184653,0.81448526,2711.0,2710.8,0.0011]
[1769822184963,1.73666068,2711.0,2710.8,0.0011]
[1769822185534,0.81448526,2711.0,2710.8,0.0011]
[1769822185967,0.9221569,2711.1,2710.8,0.0011]
[1769822185968,0.92211977,2711.2,2710.8,0.0011]
[1769822188166,6.74143443,2711.3,2710.8,0.0011]
[1769822191576,3.68929358,2711.3,2710.8,0.0011]
[1769822191764,3.05214085,2711.2,2710.8,0.0011]
[1769822193391,0.001,2711.0,2710.8,0.0011]
[1769822201923,3.10806099,2710.9,2710.8,0.0011]
[1769822202196,3.10806099,2710.9,2710.4,0.0011]
[1769822202499,0.92223697,2710.8,2710.4,0.0011]
[1769822205101,6.7969053,2710.9,2710.6,0.0011]
[1769822205397,0.001,2710.8,2710.6,0.0011]
[1769822205587,0.67979053,2710.7,2710.6,0.0011]
[1769822206873,0.67979053,2710.7,2710.4,0.0011]
[1769822208106,5.20638271,2711.0,2710.4,2.52182123]
[1769822208107,0.001,2711.0,2710.4,2.52182123]
[1769822210431,0.001,2711.0,2710.4,0.0011]
[1769822211194,0.001,2711.0,2710.4,2.51655741]
[1769822212023,0.001,2711.0,2710.4,0.0011]
[1769822216513,0.001,2711.0,2710.6,0.0011]
[1769822216923,0.001,2710.8,2710.6,0.0011]
[1769822224629,3.10906099,2710.8,2710.6,0.0011]
[1769822224826,3.41896709,2710.7,2710.6,0.0011]
[1769822227143,3.41896709,2710.7,2710.4,0.0011]
[1769822228446,3.41896709,2710.7,2710.6,0.0011]
[1769822230245,4.34123809,2710.7,2710.6,0.0011]
[1769822230958,3.41896709,2710.7,2710.6,0.0011]
[1769822231653,0.3109061,2710.7,2710.6,0.0011]
[1769822231860,0.001,2710.8,2710.6,0.0011]
[1769822232357,0.92323756,2710.8,2710.6,0.0011]
[1769822233650,0.001,2710.8,2710.6,0.0011]
[1769822237754,3.09885029,2710.8,2710.6,0.0011]
[1769822238550,4.02111188,2710.8,2710.6,0.0011]
[1769822238756,0.40211119,2710.7,2710.6,0.0011]
[1769822239779,3.49996148,2710.7,2710.4,0.0011]
[1769822240074,0.001,2710.6,2710.2,0.0011]
[1769822240373,3.09785029,2710.5,2710.2,0.0011]
[1769822240530,3.44794644,2710.5,2710.2,0.0011]
[1769822243069,0.35009615,2710.5,2710.2,0.0011]
[1769822243235,0.001,2710.6,2710.2,0.0011]
[1769822246568,3.09885029,2710.6,2710.2,0.0011]
[1769822249449,4.02018934,2710.5,2710.2,0.0011]
[1769822251651,0.001,2710.4,2710.2,0.0011]
[1769822253503,3.09885029,2710.4,2710.0,0.0011]
[1769822253794,3.09785029,2710.2,2709.8,0.0011]
[1769822255572,3.09785029,2710.0,2709.8,0.0011]
[1769822256760,3.09785029,2710.0,2709.6,0.0011]
[1769822257793,0.92254326,2709.9,2709.6,0.0011]
[1769822257987,0.40203936,2709.8,2709.6,0.0011]
[1769822264070,0.40303936,2709.8,2709.6,0.0011]
[1769822265395,4.4443978,2709.8,2709.6,0.0011]
[1769822267487,3.52181428,2709.8,2709.6,0.0011]
[1769822267888,0.40303936,2709.8,2709.6,0.0011]
[1769822271017,3.11877492,2709.7,2709.6,0.0011]
[1769822271223,3.56321472,2709.7,2709.3,0.0011]
[1769822271529,3.56321472,2709.7,2709.1,0.0011]
[1769822271725,0.4444398,2709.7,2709.1,0.0011]
[1769822273327,0.9226454,2709.6,2709.1,0.0011]
[1769822276823,0.9236454,2709.6,2709.1,0.0011]
[1769822276994,1.81876812,2709.6,2709.1,0.0011]
[1769822281222,0.001,2709.6,2709.1,2.42989716]
[1769822281529,0.92357836,2709.8,2709.1,2.42989716]
[1769822282026,3.11877492,2709.7,2709.1,0.0011]
[1769822282328,3.11877492,2709.5,2709.1,0.0011]
[1769822282725,4.04148843,2709.4,2709.1,0.0011]
[1769822283237,3.11877492,2709.4,2709.1,0.0011]
[1769822291447,4.04148875,2709.4,2709.1,0.0011]
[1769822291748,3.11877492,2709.4,2709.1,0.0011]
[1769822295526,0.001,2709.6,2709.1,2.34393256]
[1769822295722,0.001,2709.6,2709.2,2.57733582]
[1769822299953,0.001,2709.6,2709.3,0.0011]
[1769822307963,3.05276765,2709.5,2709.3,0.0011]
[1769822311582,0.92365823,2709.6,2709.3,0.0011]
[1769822311746,1.69044021,2709.6,2709.3,0.0011]
[1769822312271,1.69044021,2709.6,2709.5,0.0011]
[1769822312986,4.74320786,2709.6,2709.5,0.0011]